[Event "Cabo Verde Open 2022"]
[Site "Mindelo-S. Vicente"]
[Date "2022.04.23"]
[Round "1.8"]
[White "Moes Joaquim, Carlos"]
[Black "Varela La Madrid, Tilsia Carolina"]
[Result "0-1"]
[ECO "D53"]
[WhiteElo "1426"]
[BlackElo "2097"]
[Annotator "TA"]
[PlyCount "90"]
[EventDate "2022.04.22"]
[EventType "swiss"]
[SourceTitle "playchess.com"]
[Source "ChessBase"]
[SourceQuality "1"]
[TimeControl "40/5400+30:1800+30"]

{[%evp 12,90,20,11,25,6,19,12,16,0,8,0,0,0,11,-9,4,14,46,23,37,43,73,88,113,73,83,83,79,79,87,64,56,58,93,66,66,77,79,63,70,-13,3,-52,-51,-50,-51,-160,-170,-165,-154,-150,-151,-185,-184,-205,-200,-173,-179,-206,-186,-339,-320,-606,-532,-530,-561,-863,-506,-453,-349,-1052,-891,-1704,-1556,-29983,-29984,-29984,-29985,-29986,-29984]} 1. d4 {[%emt 0:00:05]} d5 {[%emt 0:03:50]} 2. c4 {[%emt 0:00:09]} e6 {[%emt 0:00:06]} 3. Nc3 {[%emt 0:00:27]} Nf6 {[%emt 0:00:13]} 4. Nf3 {[%emt 0:01:04]} Be7 {[%emt 0:00:23]} 5. Bg5 {[%emt 0:00:39]} c6 {[%emt 0:00:31]} 6. e3 {[%emt 0:01:05]} Nbd7 {[%emt 0:00:25]} 7. Be2 {[%emt 0:01:25]} dxc4 {[%emt 0:00:14] D53: Queen's Gambit Declined: 4 Bg5 Be7: Early deviations.} 8. a4 {[%emt 0:01:47] Prevents b5.} O-O {[%emt 0:10:39]} 9. O-O {[%emt 0:01:30] [#]} c5 $146 {[%emt 0:07:05] The position is equal.} ({Predecessor:} 9... Nd5 10. Bxe7 Qxe7 11. Bxc4 Nxc3 12. bxc3 e5 13. a5 e4 14. Nd2 Nf6 15. Qb3 Re8 16. Rfb1 Qc7 17. Qb4 Rb8 18. Qc5 b6 19. axb6 axb6 20. Qg5 Bd7 {½-½ (44) Sjugirov,S (2673)-Pridorozhni,A (2533) Khanty-Mansiysk 2014}) 10. Qc2 {[%emt 0:03:42]} cxd4 {[%emt 0:01:02]} 11. Nxd4 {[%emt 0:01:27]} Ne5 {[%emt 0:01:06]} 12. Rfd1 {[%emt 0:00:39][%cal Od4e6]} Qa5 {[%emt 0:02:03]} 13. Bf4 {[%emt 0:02:58]} Ng6 {[%emt 0:00:47]} (13... Nd3 $5 {[%cal Re6e5]} 14. Nb3 (14. Bxd3 cxd3 15. Qxd3 e5 $17) 14... Qb4 15. Bxd3 cxb3 $11) 14. Bg3 {[%emt 0:00:28]} ({Much worse is} 14. Bxc4 e5 15. Nb3 Qb4 $15) 14... e5 {[%emt 0:01:07]} 15. Nf5 {[%emt 0:05:57]} Bxf5 {[%emt 0:02:17]} 16. Qxf5 {[%emt 0:00:22]} Qc5 {[%emt 0:05:15]} 17. h4 {[%emt 0:04:48]} Qc8 {[%emt 0:08:35]} 18. Qc2 {[%emt 0:02:14]} h5 {[%emt 0:02:18]} 19. Nd5 {[%emt 0:03:22]} Nxd5 {[%emt 0:00:33]} 20. Rxd5 {[%emt 0:00:11]} Qc6 {[%emt 0:04:29]} 21. Qxc4 {[%emt 0:12:40]} Qxc4 {[%emt 0:02:42]} 22. Bxc4 {[%emt 0:00:17]} Rac8 {[%emt 0:00:08]} 23. b3 {[%emt 0:01:15]} Rfd8 {[%emt 0:01:22] Inhibits Rd7.} 24. Rad1 {[%emt 0:00:13]} Rxd5 {[%emt 0:00:45]} 25. Rxd5 {[%emt 0:00:12] And now Rd7 would win.} Rd8 {[%emt 0:00:08] Inhibits Rd7.} 26. e4 {[%emt 0:04:53]} ({White should play} 26. Rb5 $14) 26... Kf8 {[%emt 0:02:56]} 27. Be2 {[%emt 0:02:55]} (27. Rxd8+ $11 Bxd8 28. Be2) 27... Rxd5 $15 {[%emt 0:01:03]} 28. exd5 {[%emt 0:00:09]} Bxh4 {[%emt 0:00:11]} 29. Bxh4 {[%emt 0:00:37] Black continues to play with concentration.} ({Reject} 29. Bxh5 Bxg3 30. fxg3 Ke7 $17) ({White must play} 29. Bh2 $1 $15) 29... Nxh4 $17 {[%emt 0:00:06]} 30. Bxh5 $15 {[%emt 0:00:12][%mdl 4096] Endgame KB-KN} g6 {[%emt 0:01:08]} 31. Be2 {[%emt 0:00:17] [#]} Ke7 $1 {[%emt 0:00:12]} 32. g3 {[%emt 0:00:11]} Nf5 {[%emt 0:00:10]} 33. Bc4 {[%emt 0:01:43]} Kd6 {[%emt 0:00:11]} 34. Kg2 {[%emt 0:03:09]} Ne7 {[%emt 0:00:19]} 35. Kf3 {[%emt 0:00:43]} Nxd5 {[%emt 0:00:24]} 36. g4 $2 {[%emt 0:00:51]} (36. Kg4 {was worth a try.}) 36... f5 $19 {[%emt 0:00:43]} 37. g5 $2 {[%emt 0:01:39]} (37. Ke2) 37... a5 {[%emt 0:03:02]} 38. Kg3 {[%emt 0:06:30]} e4 {[%emt 0:01:02]} 39. f4 {[%emt 0:01:12]} exf3 {[%emt 0:00:24]} 40. Kxf3 {[%emt 0:00:00]} Ke5 {[%emt 0:00:00] [#] ...b6 is the strong threat.} 41. Bb5 $2 {[%emt 0:02:44]} (41. Kf2 Ke4 42. Be2) 41... Nc7 {[%emt 0:01:46]} 42. Bc4 {[%emt 0:01:02]} Ne6 {[%emt 0:00:09]} 43. Bxe6 {[%emt 0:03:16]} Kxe6 {[%emt 0:00:07] Black mates.} 44. Kf4 {[%emt 0:00:27]} Kd5 {[%emt 0:00:07]} 45. Ke3 {[%emt 0:00:29]} Ke5 {[%emt 0:00:11] Weighted Error Value: White=0.76/Black=0.15 (very precise)} 0-1

[Event "Cabo Verde Open 2022"]
[Site "Mindelo-S. Vicente"]
[Date "2022.04.23"]
[Round "2.1"]
[White "Junior, Ednasia"]
[Black "Strikovic, Aleksa"]
[Result "0-1"]
[ECO "B44"]
[WhiteElo "1898"]
[BlackElo "2489"]
[Annotator "TA"]
[PlyCount "70"]
[EventDate "2022.04.22"]
[EventType "swiss"]
[SourceTitle "playchess.com"]
[Source "ChessBase"]
[SourceQuality "1"]
[TimeControl "40/5400+30:1800+30"]

{[%evp 9,70,4,13,10,29,27,37,-38,0,-19,-7,-22,-25,-75,-61,-60,-62,-52,-25,-62,-91,-90,-62,-66,-47,-46,-39,-5,0,-1,0,-8,-9,-8,0,-50,-31,-38,-32,-81,-100,-62,-27,-65,-78,-58,-67,-433,-422,-398,-411,-647,-649,-613,-643,-636,-635,-607,-565,-570,-510,-588,-597]} 1. e4 {[%emt 0:00:08]} c5 {[%emt 0:00:06]} 2. Nf3 {[%emt 0:00:06]} e6 {[%emt 0:00:07]} 3. c4 {[%emt 0:00:23]} Nc6 {[%emt 0:00:09]} 4. d4 {[%emt 0:00:48]} cxd4 {[%emt 0:00:22]} 5. Nxd4 {[%emt 0:00:11]} Bb4+ {[%emt 0:00:32]} 6. Bd2 {[%emt 0:02:58] B44: Sicilian: Taimanov: 5 Nb5.} Bc5 {[%emt 0:04:32]} 7. Nb3 {[%emt 0:05:43] [#]} Be7 $146 {[%emt 0:00:24]} ({Predecessor:} 7... Bd4 8. Nxd4 Nxd4 9. e5 b6 10. Qa4 h6 11. Nc3 Nf5 12. Bd3 Nge7 13. Ne4 Bb7 {1-0 (59) Buil Rello,J (1814)-Cabos Vidal,E (1497) Sabinanigo 2016}) 8. Qg4 {[%emt 0:04:14]} (8. Nc3 $14) 8... h5 {[%emt 0:13:08]} (8... Nf6 $5 {[%cal Rf6g4]} 9. Qf3 (9. Qxg7 Rg8 $15) 9... d5 10. exd5 exd5 11. cxd5 Qxd5 $15) 9. Qg3 {[%emt 0:05:22]} h4 {[%emt 0:03:18]} 10. Qe3 {[%emt 0:04:55]} ({But not} 10. Qxg7 Bf6 11. Qg4 Bxb2 $17) 10... Nf6 {[%emt 0:01:27]} 11. Be2 {[%emt 0:01:07] [#]} (11. Nc3 $11 {keeps the balance.}) 11... d5 $1 $17 {[%emt 0:01:16]} 12. exd5 {[%emt 0:09:35]} exd5 {[%emt 0:00:19]} 13. Bc3 {[%emt 0:04:49]} Be6 {[%emt 0:05:25]} 14. Bxf6 {[%emt 0:08:07]} Bxf6 {[%emt 0:00:20]} 15. cxd5 {[%emt 0:00:45]} Qxd5 {[%emt 0:01:19]} 16. Bf3 {[%emt 0:04:35]} Qd6 {[%emt 0:13:58] &Nero is much more active.} 17. Nc3 {[%emt 0:10:48]} Nb4 {[%emt 0:00:15] Strongly threatening ...Nc2+.} 18. Be4 {[%emt 0:01:26] Prevents Nc2+.} Qb6 {[%emt 0:19:11]} 19. Nc5 {[%emt 0:07:38]} h3 {[%emt 0:07:16] Hoping for ...hxg2.} 20. g3 {[%emt 0:07:10]} O-O $36 {[%emt 0:01:05][%mdl 2048] Threatens to win with ...Bc4. White is under pressure.} 21. O-O {[%emt 0:07:06]} Rfe8 {[%emt 0:04:33][%cal Bf8e8,Be8e6,Be6e3][%mdl 32]} 22. Nxe6 {[%emt 0:05:24]} (22. N3a4 $11 Qb5 23. Nc3) 22... Qxe3 $1 $15 {[%emt 0:04:53]} 23. fxe3 {[%emt 0:00:07]} Rxe6 {[%emt 0:00:05]} 24. Bxb7 {[%emt 0:02:02]} (24. a3 $15 Bxc3 25. Bxb7) 24... Rb8 $17 {[%emt 0:00:11]} 25. Bf3 {[%emt 0:01:04]} Rxe3 {[%emt 0:01:03]} (25... Nc2 $5 {[%cal Rc2a1]} 26. Rab1 Nxe3 $17) 26. Bg4 {[%emt 0:02:06]} Bd4 {[%emt 0:05:00]} 27. Kh1 {[%emt 0:00:35]} Nd3 {[%emt 0:00:08]} 28. Rad1 $2 {[%emt 0:02:03][%mdl 8192] This costs White the game.} (28. Nd1 $1 $15 Re5 29. Bf5 Nf2+ 30. Nxf2 Rxf5 31. Nxh3 Rxf1+ 32. Rxf1) 28... Bxc3 $19 {[%emt 0:02:44]} ({Not} 28... Rxb2 29. Nd5 Nf2+ 30. Rxf2 Rxf2 31. Nxe3 Bxe3 32. a4 $17) 29. bxc3 {[%emt 0:01:50]} Rb2 {[%emt 0:00:07]} 30. Bf5 {[%emt 0:00:40] [#]} (30. Bxh3 $142 Nf2+ 31. Rxf2 Rxf2 32. Bg2) 30... Ree2 $1 {[%emt 0:00:21] Black is clearly winning.} 31. Bxh3 {[%emt 0:01:35]} Nf2+ {[%emt 0:00:20]} 32. Rxf2 {[%emt 0:00:31]} Rxf2 {[%emt 0:00:02]} 33. Kg1 {[%emt 0:00:16]} Rxh2 {[%emt 0:00:56]} 34. Bf1 {[%emt 0:00:08]} Rhd2 {[%emt 0:01:14] Inhibits Rd8+.} 35. Re1 {[%emt 0:01:07]} Rxa2 {[%emt 0:11:54] Weighted Error Value: White=0.45/Black=0.08 (flawless)} 0-1

[Event "Cabo Verde Open 2022"]
[Site "Mindelo-S. Vicente"]
[Date "2022.04.23"]
[Round "2.2"]
[White "Ortega Amarelle, Mariano"]
[Black "Ferreira, Paulo"]
[Result "1/2-1/2"]
[ECO "E69"]
[WhiteElo "2476"]
[BlackElo "2073"]
[Annotator "TA"]
[PlyCount "80"]
[EventDate "2022.04.22"]
[EventType "swiss"]
[SourceTitle "playchess.com"]
[Source "ChessBase"]
[SourceQuality "1"]
[TimeControl "40/5400+30:1800+30"]

{[%evp 25,80,71,71,67,82,91,101,72,86,0,36,30,146,138,137,73,80,77,110,115,137,133,133,125,136,112,98,51,51,-22,-8,-48,-24,-38,26,0,21,-22,0,-37,0,0,0,0,0,-41,0,0,0,-63,-60,-45,-39,-30,-20,-20,-20]} 1. d4 {[%emt 0:00:05]} Nf6 {[%emt 0:07:04]} 2. Nf3 {[%emt 0:00:12]} d6 {[%emt 0:00:25]} 3. c4 {[%emt 0:00:17]} Nbd7 {[%emt 0:00:24]} 4. Nc3 {[%emt 0:00:10]} e5 {[%emt 0:00:17]} 5. g3 {[%emt 0:00:08]} g6 {[%emt 0:00:53]} 6. Bg2 {[%emt 0:00:09]} Bg7 {[%emt 0:00:08]} 7. O-O {[%emt 0:00:08]} O-O {[%emt 0:00:30]} 8. e4 {[%emt 0:00:07]} c6 {[%emt 0:00:54]} 9. h3 {[%emt 0:01:43]} Qc7 {[%emt 0:02:45]} 10. Be3 {[%emt 0:00:50]} Re8 {[%emt 0:02:47]} 11. Re1 {[%emt 0:01:38]} exd4 {[%emt 0:05:21]} 12. Nxd4 {[%emt 0:00:12]} Nc5 {[%emt 0:00:52]} 13. Qc2 {[%emt 0:03:05]} a5 {[%emt 0:00:51]} 14. b3 {[%emt 0:04:10] E69: King's Indian: Fianchetto: 6...Nbd7 7 0-0 e5 8 e4 c6 9 h3.} Nh5 {[%emt 0:04:40][%cal Of7f5]} 15. Rad1 {[%emt 0:03:33] [#]} Bd7 $146 {[%emt 0:07:06]} ({Predecessor:} 15... Be6 16. Re2 Rad8 17. Nxe6 Nxe6 18. Red2 Qe7 19. Bb6 Rd7 20. c5 Qg5 21. cxd6 Be5 {1-0 (32) Aponte Castillo,J-Calzado del Toro,E Madrid 1999}) 16. a3 {[%emt 0:08:32] White is better.} Rad8 {[%emt 0:05:26]} 17. Rb1 {[%emt 0:15:23]} (17. b4 $16 Na6 18. Qb3) 17... Qc8 {[%emt 0:07:25]} (17... f5 $5) 18. g4 {[%emt 0:14:42]} Nf4 {[%emt 0:08:41]} 19. Bxf4 $16 {[%emt 0:02:47]} Bxd4 {[%emt 0:00:33]} 20. Qd2 {[%emt 0:00:56]} (20. Bxd6 $142 f6 21. Qd2) 20... Be5 {[%emt 0:04:57]} 21. Bh6 {[%emt 0:00:31]} Ne6 {[%emt 0:05:28][%cal Og6g5,Bc5e6,Be6d4,Bd4c2,Bc2e3][%mdl 32]} 22. f4 {[%emt 0:07:50][%cal Bf2f4,Bf4f5][%mdl 32] Prevents g5.} Bd4+ {[%emt 0:02:53]} 23. Kh1 {[%emt 0:00:18] Strongly threatening f5.} Bh8 {[%emt 0:00:51]} 24. f5 {[%emt 0:13:12] &Bianco is more active.} Nd4 {[%emt 0:04:18]} 25. Be3 {[%emt 0:06:15]} c5 {[%emt 0:01:02]} 26. Nd5 {[%emt 0:00:15]} (26. Bg5 $16) 26... Bc6 $14 {[%emt 0:00:18]} 27. Qxa5 {[%emt 0:00:44]} (27. Bg5 $14 Bxd5 28. Bxd8 (28. exd5 Rxe1+ 29. Rxe1 Re8 $11) (28. cxd5 Rd7 $11)) 27... Nc2 $11 {[%emt 0:03:00]} 28. Re2 {[%emt 0:07:57]} Nxe3 {[%emt 0:00:28]} 29. Nxe3 {[%emt 0:01:47][%cal Bd5e3,Be3c2,Bc2e1,Be1d3][%mdl 32]} Be5 {[%emt 0:05:08]} (29... Rxe4 $15 30. Rbe1 Re5) 30. Qd2 {[%emt 0:01:19]} Qd7 {[%emt 0:01:37]} 31. Nc2 {[%emt 0:03:06]} Qe7 {[%emt 0:00:26][%mdl 1024] Black has compensation.} 32. Ne1 {[%emt 0:01:05]} g5 {[%emt 0:02:02]} 33. Nd3 {[%emt 0:01:16]} Bd4 {[%emt 0:00:43] This bishop pair is nice.} 34. Bf3 {[%emt 0:01:32]} Qf6 {[%emt 0:01:45]} 35. Kg2 {[%emt 0:00:25]} Re7 {[%emt 0:04:28]} 36. b4 {[%emt 0:01:14]} Rde8 {[%emt 0:04:22][%cal Rc6e4]} 37. bxc5 {[%emt 0:00:25]} ({Better is} 37. Nf2 $11) 37... dxc5 $15 {[%emt 0:00:25][%cal Re7e4]} 38. e5 {[%emt 0:00:25]} Bxf3+ {[%emt 0:01:49]} 39. Kxf3 {[%emt 0:00:01]} Bxe5 {[%emt 0:02:51]} 40. Nxe5 {[%emt 0:00:00] The board is on fire.} Rxe5 {[%emt 0:04:37] Weighted Error Value: White=0.27 (precise) /Black=0.23 (precise)} 1/2-1/2

[Event "Cabo Verde Open 2022"]
[Site "Mindelo-S. Vicente"]
[Date "2022.04.23"]
[Round "2.3"]
[White "Rodriguez Guevara, Celia M."]
[Black "Galego, Luis"]
[Result "0-1"]
[ECO "B22"]
[WhiteElo "1849"]
[BlackElo "2474"]
[Annotator "TA"]
[PlyCount "48"]
[EventDate "2022.04.22"]
[EventType "swiss"]
[SourceTitle "playchess.com"]
[Source "ChessBase"]
[SourceQuality "1"]
[TimeControl "40/5400+30:1800+30"]

{[%evp 16,48,41,49,53,61,38,14,52,41,33,38,59,37,37,28,39,-26,-31,-71,-29,-100,-88,-93,-102,-101,-86,-94,-82,-433,-450,-543,-425,-432,-429]} 1. e4 {[%emt 0:00:41]} c5 {[%emt 0:00:19]} 2. c3 {[%emt 0:00:15]} Nf6 {[%emt 0:01:03]} 3. e5 {[%emt 0:00:35]} Nd5 {[%emt 0:00:03]} 4. Nf3 {[%emt 0:00:26]} e6 {[%emt 0:00:21]} 5. d4 {[%emt 0:00:29]} cxd4 {[%emt 0:00:19]} 6. cxd4 {[%emt 0:01:23]} d6 {[%emt 0:00:54]} 7. a3 {[%emt 0:04:52]} Nc6 {[%emt 0:00:27]} 8. Bd3 {[%emt 0:00:24]} Qc7 {[%emt 0:13:41]} 9. O-O {[%emt 0:08:20]} Bd7 {[%emt 0:03:16][%cal Rd6e5] has lost popularity (9...dxe5). B22: Sicilian: 2 c3.} 10. Re1 {[%emt 0:02:50]} Be7 {[%emt 0:01:14]} 11. Nbd2 {[%emt 0:08:32]} Nf4 {[%emt 0:02:46] The position is equal.} 12. Bc2 {[%emt 0:01:34]} (12. Be4 {is more complex.} O-O 13. exd6 Bxd6 14. Nc4) 12... dxe5 {[%emt 0:07:09]} 13. dxe5 {[%emt 0:03:29]} Ng6 {[%emt 0:02:58]} 14. Nc4 {[%emt 0:04:36]} O-O {[%emt 0:00:55]} 15. Bg5 {[%emt 0:16:15] [#]} Rad8 $146 {[%emt 0:07:23]} ({Predecessor:} 15... Rfd8 16. Bxg6 hxg6 17. Bxe7 Nxe7 18. Nd6 Bc6 19. Ng5 Nf5 20. Qg4 Nxd6 21. exd6 Qxd6 {½-½ (34) Alexopoulos,G (2200)-Sprenkle,D Peoria 1981}) 16. Bxe7 {[%emt 0:03:45]} ({White should play} 16. Rc1 $14) 16... Ncxe7 $11 {[%emt 0:00:38]} 17. Qe2 {[%emt 0:10:23]} Bb5 {[%emt 0:07:36]} (17... Nf4 $5 {[%cal Rf4e2]} 18. Qf1 (18. Qe4 Neg6 $17) 18... b5 $17) 18. Bb3 {[%emt 0:03:27]} (18. Rac1 $11 {remains equal.}) 18... Nf5 {[%emt 0:05:55]} 19. Rad1 {[%emt 0:09:28]} Rxd1 {[%emt 0:01:45]} 20. Rxd1 {[%emt 0:00:13]} Rc8 {[%emt 0:00:47][%cal Rb5c4]} 21. Rc1 {[%emt 0:04:32]} h6 {[%emt 0:02:40]} 22. Qe4 $2 {[%emt 0:05:10][%mdl 8192] [#] Prevents Nf4.} (22. Rc3 $17 {is a better chance.}) 22... Bc6 $1 $19 {[%emt 0:00:49] Black is clearly winning.} 23. Qg4 {[%emt 0:04:43]} Bxf3 {[%emt 0:00:09]} 24. Qxf3 {[%emt 0:00:02]} b5 {[%emt 0:00:38] Weighted Error Value: White=0.68/Black=0.18 (very precise)} 0-1

[Event "Cabo Verde Open 2022"]
[Site "Mindelo-S. Vicente"]
[Date "2022.04.23"]
[Round "2.4"]
[White "Del Rio De Angelis, Salvador G."]
[Black "Caxita, Esperanca"]
[Result "1/2-1/2"]
[ECO "D10"]
[WhiteElo "2452"]
[BlackElo "1910"]
[Annotator "TA"]
[PlyCount "66"]
[EventDate "2022.04.22"]
[EventType "swiss"]
[SourceTitle "playchess.com"]
[Source "ChessBase"]
[SourceQuality "1"]
[TimeControl "40/5400+30:1800+30"]

{[%evp 17,66,27,33,33,33,28,32,42,41,22,33,20,33,8,14,0,0,0,0,0,0,0,0,0,0,0,0,0,0,0,0,-22,-19,-26,-27,-27,-26,-22,-26,-19,-19,-30,-33,-31,-32,-27,0,-20,0,-32,0]} 1. d4 {[%emt 0:03:04]} d5 {[%emt 0:00:15]} 2. c4 {[%emt 0:00:10]} c6 {[%emt 0:00:18]} 3. cxd5 {[%emt 0:00:16]} cxd5 {[%emt 0:00:15]} 4. Bf4 {[%emt 0:00:09]} Nc6 {[%emt 0:02:30]} 5. e3 {[%emt 0:00:11]} Nf6 {[%emt 0:04:43]} 6. Bd3 {[%emt 0:00:11]} e6 {[%emt 0:00:20]} 7. Nc3 {[%emt 0:00:49]} Bd6 {[%emt 0:02:16]} 8. Bxd6 {[%emt 0:00:12]} Qxd6 {[%emt 0:00:07]} 9. f4 {[%emt 0:00:05]} Bd7 {[%emt 0:02:17]} 10. Nf3 {[%emt 0:00:27] D10: Slav Defence: 3 cxd5 (without early Nf3) and 3 Nc3.} Ng4 {[%emt 0:04:35]} 11. Qe2 {[%emt 0:16:11]} f5 {[%emt 0:01:54]} 12. O-O {[%emt 0:12:50] White is slightly better.} O-O {[%emt 0:01:35]} 13. h3 {[%emt 0:04:08]} Nf6 {[%emt 0:00:31] [#]} 14. g4 $146 {[%emt 0:00:42]} ({Predecessor:} 14. Ne5 Ne7 15. Rac1 Rac8 16. g4 Ne4 17. Bxe4 dxe4 18. Rfd1 Bc6 19. Qc4 Bd5 20. Qa4 {½-½ (54) Tischbierek,R (2506)-Mueller,K (2507) Austria 2003}) 14... Qe7 {[%emt 0:07:37]} ({Much less strong is} 14... fxg4 15. hxg4 Rac8 16. Ne5 $16) (14... Ne4 {feels hotter.} 15. Kh2 Nb4 16. Ne5 Rac8) 15. gxf5 {[%emt 0:04:15]} exf5 {[%emt 0:00:39]} 16. Ne5 {[%emt 0:00:08]} Be6 {[%emt 0:04:42]} 17. Kh2 {[%emt 0:01:08]} Ne4 {[%emt 0:02:41]} 18. Bxe4 {[%emt 0:02:24]} fxe4 {[%emt 0:01:44]} 19. Rg1 {[%emt 0:01:42]} Qh4 {[%emt 0:02:11][%csl Ge6][%cal Rh4h3] [#]} 20. Qg2 {[%emt 0:17:14][%csl Gg1][%cal Rg2g7]} Qh6 {[%emt 0:02:36]} 21. Ng4 {[%emt 0:06:28] Pair of Knights!} Qg6 {[%emt 0:03:08]} 22. Ne5 {[%emt 0:05:22]} Qxg2+ {[%emt 0:02:02]} 23. Rxg2 {[%emt 0:01:33] And now Rag1 would win.} Ne7 $1 {[%emt 0:00:59]} 24. Rc1 {[%emt 0:00:55]} Rac8 {[%emt 0:00:45]} 25. Rgc2 {[%emt 0:00:14]} Nf5 {[%emt 0:10:30]} 26. Nd1 {[%emt 0:00:10]} Rxc2+ {[%emt 0:01:48]} 27. Rxc2 {[%emt 0:00:07]} Rc8 {[%emt 0:01:13]} 28. Rxc8+ {[%emt 0:00:11]} Bxc8 $11 {[%emt 0:00:09] KBN-KNN} 29. Kg2 {[%emt 0:00:05]} Kf8 {[%emt 0:01:13]} 30. Kf2 {[%emt 0:00:08]} Nd6 {[%emt 0:03:29]} 31. Kg3 {[%emt 0:00:16]} Nf5+ {[%emt 0:01:03]} 32. Kf2 {[%emt 0:00:15]} Nd6 {[%emt 0:02:04]} 33. Kg3 {[%emt 0:00:06]} Nf5+ {[%emt 0:00:38] Weighted Error Value: White=0.04 (flawless) /Black=0.03 (flawless)} 1/2-1/2

[Event "Cabo Verde Open 2022"]
[Site "Mindelo-S. Vicente"]
[Date "2022.04.23"]
[Round "2.5"]
[White "Pereira, Eder Marcio"]
[Black "Fernandes, Antonio"]
[Result "0-1"]
[ECO "A45"]
[WhiteElo "1728"]
[BlackElo "2313"]
[Annotator "TA"]
[PlyCount "72"]
[EventDate "2022.04.22"]
[EventType "swiss"]
[SourceTitle "playchess.com"]
[Source "ChessBase"]
[SourceQuality "1"]
[TimeControl "40/5400+30:1800+30"]

{[%evp 9,72,-7,0,-125,-135,-169,-193,-183,-118,-266,-280,-400,-114,-114,-115,-110,-100,-149,-104,-172,-168,-189,-192,-185,-196,-213,-211,-245,-240,-256,-250,-268,-266,-264,-236,-236,-223,-232,-232,-229,-235,-235,-227,-229,-223,-238,-235,-232,-232,-268,-268,-259,-242,-332,-300,-357,-323,-443,-443,-545,-502,-662,-645,-589,-553]} 1. d4 {[%emt 0:01:15]} Nf6 {[%emt 0:00:04]} 2. Bf4 {[%emt 0:01:56]} c5 {[%emt 0:00:59]} 3. e3 {[%emt 0:00:54]} Qb6 {[%emt 0:00:42]} 4. Nc3 {[%emt 0:01:20]} d6 {[%emt 0:01:49]} 5. dxc5 {[%emt 0:08:35]} Qxb2 {[%emt 0:10:21]} 6. Nb5 {[%emt 0:00:35] A45: Trompowsky Attack.} (6. Nge2 $11) 6... Qb4+ $17 {[%emt 0:00:13]} 7. c3 {[%emt 0:04:12]} Qxc5 {[%emt 0:00:11] White must now prevent ...a6.} 8. Qd4 {[%emt 0:00:12] [#] Black is clearly better.} Qc6 $146 {[%emt 0:28:38] Hoping for ...a6.} ({Predecessor:} 8... Qxd4 9. cxd4 Kd7 10. Nf3 h6 11. Bc4 e6 12. O-O a6 13. Nc3 b5 14. Bb3 Bb7 {0-1 (42) Ruprich,F-Handke,F (2260) Stuttgart 1998}) 9. Rd1 {[%emt 0:39:48]} (9. Nf3 $17 {was worth a try.}) 9... a6 $19 {[%emt 0:01:27]} 10. Na7 {[%emt 0:06:45] [#]} (10. Qb4 $142) 10... Qc7 $2 {[%emt 0:01:03]} (10... Rxa7 $1 $19 {[%mdl 512] has better winning chances.} 11. Qxa7 Qxc3+ 12. Rd2 Nc6) 11. Nxc8 $17 {[%emt 0:00:57]} Qxc8 {[%emt 0:00:08]} 12. Bg5 {[%emt 0:01:28]} Nbd7 {[%emt 0:02:29]} 13. Nf3 {[%emt 0:01:04]} (13. Bxf6 $142 Nxf6 14. Nf3) 13... g6 {[%emt 0:01:04]} 14. e4 {[%emt 0:04:40]} (14. Bxf6 $17 {was called for.} Nxf6 15. Be2) 14... Bg7 $19 {[%emt 0:01:45]} 15. Be2 {[%emt 0:00:33]} Nh5 {[%emt 0:03:49][%csl LRc3,LRd4]} 16. Qd3 {[%emt 0:02:42]} Qxc3+ {[%emt 0:03:02]} 17. Qxc3 {[%emt 0:00:13]} Bxc3+ {[%emt 0:00:03]} 18. Bd2 {[%emt 0:00:12]} Bxd2+ {[%emt 0:01:01]} 19. Rxd2 {[%emt 0:00:48]} Nf4 {[%emt 0:00:10]} 20. O-O {[%emt 0:00:13]} Nxe2+ {[%emt 0:00:35]} 21. Rxe2 {[%emt 0:00:08]} Rc8 {[%emt 0:00:12]} 22. e5 {[%emt 0:00:11]} Nxe5 {[%emt 0:00:32]} 23. Nxe5 {[%emt 0:00:10]} dxe5 {[%emt 0:00:03]} 24. Rxe5 {[%emt 0:00:09][%mdl 4096] Endgame KRR-KRR} e6 {[%emt 0:00:40]} 25. Rb1 {[%emt 0:00:46]} Rc7 {[%emt 0:00:05]} 26. a4 {[%emt 0:00:28]} Kd8 {[%emt 0:00:25]} 27. g3 {[%emt 0:01:54]} Kc8 {[%emt 0:00:06]} 28. Kg2 {[%emt 0:00:17]} Rd8 {[%emt 0:00:06]} 29. Rb2 {[%emt 0:00:14]} Rd4 {[%emt 0:00:34]} 30. a5 {[%emt 0:01:12]} Rdc4 {[%emt 0:00:16]} 31. h4 {[%emt 0:00:35]} R7c5 {[%emt 0:00:34]} 32. Rbe2 {[%emt 0:00:34]} h5 {[%emt 0:01:22]} 33. f3 {[%emt 0:01:02]} Kc7 {[%emt 0:00:56] Black is clearly winning.} 34. Kh3 {[%emt 0:00:35]} Kc6 {[%emt 0:00:58] aiming for ...Rxe5.} 35. g4 {[%emt 0:01:43]} Rxe5 {[%emt 0:00:11]} 36. Rxe5 {[%emt 0:00:13]} Rc5 {[%emt 0:00:11] Weighted Error Value: White=0.49/Black=0.21 (precise)} 0-1